bitfinex-derivatives/quotes_ETHF0:USTF0_20260207
["timestamp","ask_amount","ask_price","bid_price","bid_amount"]
[1770447253908,10.00113122,2065.3,2064.1,0.00264685]
[1770447254113,10.00605236,2065.3,2064.1,0.00264685]
[1770447255616,10.00605236,2065.3,2064.1,0.82567579]
[1770447257119,0.00492114,2065.3,2064.1,0.82567579]
[1770447257519,10.09989226,2065.3,2064.1,0.82567579]
[1770447257720,10.09989226,2065.3,2064.1,0.00264685]
[1770447259319,10.09989226,2065.3,2063.3,0.87856438]
[1770447259825,9.96438601,2065.1,2063.1,1.12023093]
[1770447260022,9.96438601,2065.1,2063.2,0.73255777]
[1770447260624,9.96438601,2065.1,2063.5,0.73659586]
[1770447260825,9.96438601,2065.1,2063.6,0.59312297]
[1770447261022,9.96438601,2065.1,2063.7,0.59312297]
[1770447261224,9.96236697,2065.2,2063.7,0.59312297]
[1770447261432,9.96236697,2065.2,2063.8,0.58967774]
[1770447262119,9.96236697,2065.2,2063.9,0.44752824]
[1770447263720,9.96236697,2065.2,2064.0,0.29617582]
[1770447264422,9.96236697,2065.2,2063.8,0.19882129]
[1770447266222,9.96236697,2065.2,2063.8,0.44122129]
[1770447266422,9.96236697,2065.2,2063.8,0.2424]
[1770447267822,9.96236697,2065.2,2063.8,5.04762842]
[1770447268030,9.96236697,2065.2,2063.8,0.2424]
[1770447269527,9.98042724,2065.5,2064.3,0.24234]
[1770447269725,9.98042724,2066.6,2064.4,4.30605089]
[1770447269925,9.98042724,2066.6,2064.5,0.24232]
[1770447270121,2.68361916,2064.6,2063.1,8.60298824]
[1770447270322,8.98599314,2064.5,2063.1,4.30149412]
[1770447270527,8.99119295,2064.5,2063.1,4.30641526]
[1770447270728,8.99119295,2064.5,2063.2,9.3981127]
[1770447271123,8.99119295,2064.5,2063.4,9.3981127]
[1770447271531,8.99119295,2064.5,2063.6,9.3981127]
[1770447271832,8.99119295,2064.5,2063.7,9.3981127]
[1770447272032,8.99119295,2064.5,2063.3,9.3981127]
[1770447272424,8.99119295,2064.5,2063.5,9.3981127]
[1770447272826,8.99119295,2064.5,2063.1,0.00492114]
[1770447272827,8.99119295,2064.5,2063.6,13.69960682]
[1770447273027,8.99119295,2064.5,2063.6,9.3981127]
[1770447273230,8.99119295,2064.5,2063.7,4.30149412]
[1770447274833,8.98599314,2064.7,2063.7,4.30149412]
[1770447275430,8.98599314,2064.7,2063.7,13.69960682]
[1770447275932,8.99075684,2064.7,2063.7,13.69960682]
[1770447277138,8.99075684,2064.7,2063.7,4.30149412]
[1770447277936,8.99075684,2064.7,2063.7,14.40771347]
[1770447278330,8.99075684,2064.7,2063.8,10.10621935]
[1770447278734,8.99075684,2064.7,2063.9,14.40771347]
[1770447278933,8.99075684,2064.7,2063.9,10.10621935]
[1770447279631,8.99075684,2064.7,2064.0,4.30149412]
[1770447279831,8.99075684,2064.7,2063.7,10.10621935]
[1770447280434,8.99075684,2064.7,2063.8,4.30149412]
[1770447280633,8.99075684,2064.7,2063.8,14.40771347]
[1770447281337,8.99075684,2064.7,2063.8,4.30149412]
[1770447281738,10.17513536,2064.6,2063.8,4.30149412]
[1770447283535,10.17513536,2064.6,2063.8,14.40771347]
[1770447284341,10.17513536,2064.6,2063.8,4.30149412]
[1770447284838,10.17513536,2064.2,2063.1,10.11114049]
[1770447285241,10.17513536,2064.0,2063.1,10.11114049]
[1770447285740,10.17513536,2064.0,2063.5,21.49877542]
[1770447287542,10.17513536,2064.2,2063.5,10.10621935]
[1770447287939,42.2096659,2064.4,2063.5,10.10621935]
[1770447288132,10.17513536,2064.5,2063.5,10.10621935]
[1770447289538,10.17513536,2064.5,2063.2,10.10621935]
[1770447289842,10.17513536,2064.4,2063.2,10.10621935]
[1770447291639,10.17513536,2064.1,2063.2,10.10621935]
[1770447292041,10.17513536,2064.1,2063.1,0.00492114]
[1770447292042,52.38480126,2064.1,2063.1,0.00492114]
[1770447292241,10.17513536,2064.0,2063.1,0.00492114]
[1770447292437,52.38480126,2064.0,2063.1,0.00492114]
[1770447292741,10.17513536,2063.8,2063.1,0.00492114]
[1770447292940,10.17513536,2063.8,2062.6,10.10621935]
[1770447293141,10.17513536,2063.8,2062.1,2.89422239]
[1770447293142,10.17513536,2063.7,2062.1,10.10621935]
[1770447293346,10.17513536,2063.5,2062.3,10.10621935]
[1770447293848,10.17513536,2063.5,2062.0,10.46785805]
[1770447294148,10.17513536,2063.5,2062.0,10.47305786]
[1770447294447,10.17513536,2063.5,2062.0,10.11141916]
[1770447294947,10.17513536,2063.5,2062.0,10.4712124]
[1770447296641,10.17513536,2063.5,2062.0,10.11141916]
[1770447297045,10.17513536,2063.5,2062.0,10.47719859]
[1770447299847,10.17513536,2063.7,2062.6,10.10621935]
[1770447300353,10.17513536,2063.7,2062.2,2.26293308]
[1770447300354,10.17513536,2064.3,2062.5,2.89422239]
[1770447300543,10.17513536,2064.0,2062.6,10.10621935]
[1770447301051,10.17513536,2064.4,2062.9,10.10621935]
[1770447301252,10.17513536,2064.6,2062.9,10.10621935]
[1770447301645,10.17513536,2064.6,2063.1,10.10621935]
[1770447302447,12.19547844,2064.6,2063.1,10.10621935]
[1770447303248,10.17513536,2064.6,2063.1,10.10621935]
[1770447304243,10.17513536,2064.5,2063.1,10.10621935]
[1770447304443,10.17513536,2064.4,2063.1,10.10621935]
[1770447304643,10.17513536,2064.3,2063.1,10.10621935]
[1770447304848,10.17513536,2064.5,2063.1,10.10621935]
[1770447305551,0.0047637,2064.7,2063.5,10.10621935]
[1770447305750,0.0047637,2064.7,2063.5,10.11141916]
[1770447306453,8.79526337,2064.7,2063.5,10.11141916]
[1770447307951,19.21003782,2065.6,2064.1,0.24237]
[1770447308154,8.79049967,2065.6,2064.2,8.67119899]
[1770447308751,8.79049967,2065.6,2064.1,8.67119899]
[1770447308944,8.79049967,2065.4,2064.1,8.67119899]
[1770447311356,8.79049967,2065.4,2064.1,8.91355899]
[1770447312764,0.00352033,2065.6,2064.4,8.63806233]
[1770447313056,8.35496203,2065.6,2064.4,8.63806233]
[1770447313451,0.00352033,2065.6,2064.4,8.63806233]
[1770447315055,0.00352033,2065.6,2064.6,8.39573233]
[1770447315856,8.3514417,2066.0,2065.5,21.49877542]
[1770447316167,8.3514417,2066.8,2065.3,8.39573233]
[1770447316555,8.3514417,2066.7,2065.3,8.39573233]
[1770447316751,8.357098,2066.7,2065.3,8.40065241]
[1770447317653,8.357098,2066.7,2065.3,0.00492008]
[1770447318454,8.357098,2066.7,2065.3,8.40065241]
[1770447318861,8.357098,2066.7,2065.3,0.00492008]
[1770447319063,11.17183772,2066.7,2065.3,0.00492008]
[1770447319262,8.3514417,2066.2,2064.6,8.39573233]
[1770447319760,8.3514417,2066.2,2064.8,8.39573233]
[1770447320268,8.3514417,2066.2,2064.8,8.3998691]
[1770447321356,8.3514417,2066.2,2064.8,0.00413677]
[1770447322169,8.3514417,2066.2,2064.8,8.3998691]
[1770447324359,8.3514417,2066.2,2064.8,0.00413677]
[1770447324360,11.16618142,2066.1,2064.8,0.00413677]
[1770447324565,8.3514417,2066.0,2064.8,0.00413677]
[1770447324868,8.3514417,2066.0,2064.8,8.3998691]
[1770447325062,8.3514417,2066.0,2064.8,0.00413677]
[1770447325263,8.3514417,2065.9,2064.8,0.00413677]
[1770447325563,11.16618142,2065.4,2064.0,8.39573233]
[1770447325763,8.3514417,2065.2,2063.8,8.39573233]
[1770447325955,8.3514417,2065.1,2063.8,8.39573233]
[1770447326363,8.3514417,2065.0,2063.3,8.39573233]
[1770447326561,8.35631139,2065.0,2063.3,8.8022891]
[1770447326866,8.3514417,2064.9,2063.3,8.39984734]
[1770447327263,8.3514417,2064.8,2063.3,8.39984734]
[1770447329267,8.3514417,2064.7,2063.3,8.39984734]
[1770447331168,8.3514417,2064.7,2064.0,21.49877542]
[1770447331563,2.81473972,2064.6,2063.4,8.39573233]
[1770447331971,2.81473972,2064.5,2063.3,8.39984734]
[1770447332870,0.68136034,2064.4,2063.3,8.39984734]
[1770447333565,0.68136034,2064.4,2063.3,0.00411501]
[1770447333765,0.68136034,2064.4,2063.3,8.39984734]
[1770447334564,0.68518885,2064.3,2063.3,0.00411501]
[1770447334766,0.60355653,2064.2,2063.3,0.00411501]
[1770447335467,0.61097408,2064.3,2063.3,8.39984734]
[1770447337469,2.81473972,2064.7,2063.3,8.39984734]
[1770447337670,0.6042108,2065.3,2063.3,10.65833973]
[1770447337873,0.52975116,2065.1,2063.4,7.9683126]
[1770447338366,3.2991872,2065.5,2063.4,7.9683126]
[1770447338670,3.2991872,2065.6,2063.4,7.9683126]
[1770447338869,0.48444748,2065.6,2063.6,8.2107326]
[1770447339372,0.48444748,2065.6,2063.8,7.9683126]
[1770447339573,0.48444748,2065.6,2063.8,8.2107126]
[1770447340170,0.34352705,2065.9,2063.8,8.2107126]
[1770447340374,0.34717227,2065.9,2063.8,8.2107126]
[1770447342465,0.03307182,2065.8,2063.8,8.2107126]
[1770447343170,2.81473972,2065.8,2063.8,8.2107126]
[1770447343372,3.06055494,2065.9,2063.8,8.2107126]
[1770447344275,0.46431857,2065.5,2063.8,7.9683126]
[1770447344969,2.81473972,2065.6,2063.8,7.9683126]
[1770447344970,0.39416309,2065.4,2063.8,7.9683126]
[1770447345871,2.81473972,2065.2,2063.8,7.9683126]
[1770447346077,2.81473972,2064.9,2063.8,7.9683126]
[1770447346263,0.06113844,2064.8,2063.8,7.9683126]
[1770447346871,0.05947863,2064.7,2063.5,7.9683126]
[1770447347469,0.05956333,2064.6,2063.5,7.9683126]
[1770447347870,3.05700972,2065.0,2063.5,7.9683126]
[1770447348071,0.24227,2065.0,2063.5,7.9683126]
[1770447348472,3.05700972,2065.0,2063.5,7.9683126]
[1770447349472,2.81473972,2065.0,2063.5,7.9683126]
[1770447349675,2.81473972,2065.1,2063.5,7.9683126]
[1770447349974,2.81473972,2065.0,2063.5,7.9683126]
[1770447351480,2.81473972,2064.9,2063.5,7.9683126]
[1770447351870,2.81473972,2064.8,2063.5,7.9683126]
[1770447352070,2.81473972,2064.7,2063.5,7.9683126]
[1770447352472,2.81473972,2064.6,2063.5,7.9683126]
[1770447352876,2.81473972,2064.7,2063.5,7.9683126]
[1770447353181,2.81473972,2064.6,2063.5,7.9683126]
[1770447353879,2.81473972,2064.4,2063.5,7.9683126]
[1770447354079,2.81985136,2064.4,2063.5,7.9683126]
[1770447355681,0.00511164,2064.4,2063.5,7.9683126]
[1770447357980,2.81985136,2064.4,2063.5,7.9683126]
[1770447358977,2.81985136,2064.4,2063.3,5.00411501]
[1770447359178,2.81473972,2064.0,2063.4,7.9683126]
[1770447359387,2.81473972,2064.3,2063.4,7.9683126]
[1770447359684,0.00511164,2064.4,2063.4,7.9683126]
[1770447360080,0.00511164,2064.4,2063.4,7.97342565]
[1770447360289,2.81473972,2064.9,2063.4,7.97342565]
[1770447360580,2.81473972,2065.1,2063.4,7.97342565]
[1770447360782,2.81473972,2065.2,2064.5,7.9683126]
[1770447361279,3.05698972,2065.2,2063.5,7.9683126]
[1770447361477,2.81473972,2065.0,2063.5,7.9683126]
[1770447361677,2.81473972,2065.1,2063.5,7.9683126]
[1770447362079,2.81957286,2065.2,2063.5,7.9683126]
[1770447363682,0.00483314,2065.2,2063.5,7.9683126]
[1770447363984,0.00483314,2065.2,2063.6,7.9683126]
[1770447365486,0.00483314,2065.2,2063.9,7.9683126]
[1770447365880,2.01603239,2065.7,2064.0,7.79652595]
[1770447366081,2.81473972,2065.3,2064.0,7.79652595]
[1770447366685,2.81473972,2065.4,2064.0,7.79652595]
[1770447366888,0.00390731,2065.4,2064.0,7.79652595]
[1770447367381,0.00390731,2065.4,2064.2,7.77059861]
[1770447367888,42.2096659,2066.0,2064.5,7.77059861]
[1770447367889,2.0158752,2065.9,2064.5,7.77059861]
[1770447368093,2.81473972,2065.6,2064.5,7.77059861]
[1770447368891,2.0158752,2065.3,2063.7,7.70701454]
[1770447369087,2.81473972,2065.2,2063.7,7.70701454]
[1770447369589,2.81473972,2065.1,2063.7,7.70701454]
[1770447369784,2.81473972,2064.9,2063.4,0.00511305]
[1770447369986,2.81473972,2064.9,2063.4,7.71027196]
[1770447369987,2.81473972,2064.0,2063.4,7.71027196]
[1770447370186,2.81473972,2064.0,2063.3,4.4965989]
[1770447370187,2.81473972,2063.9,2063.3,4.4965989]
[1770447370387,2.81473972,2063.8,2063.0,7.70515891]
[1770447370885,0.00394782,2064.0,2063.0,7.70515891]
[1770447370886,2.81868754,2064.0,2063.0,7.70515891]
[1770447371085,2.81868754,2064.0,2063.0,7.71072162]
[1770447371291,0.00394782,2064.0,2063.0,7.71072162]
[1770447371485,2.81473972,2063.9,2063.0,7.71072162]
[1770447372187,2.81473972,2063.9,2063.0,0.00556271]
[1770447372398,2.81473972,2063.8,2063.0,7.75956856]
[1770447373391,2.81473972,2063.9,2063.0,7.75956856]
[1770447374390,2.0158752,2063.4,2062.4,7.94202949]
[1770447374589,2.81473972,2063.4,2062.4,7.94202949]
[1770447374788,42.21361372,2064.0,2062.4,7.94202949]
[1770447374991,0.00394782,2064.0,2062.4,7.94202949]
[1770447375590,0.00394782,2064.0,2062.4,7.9462217]
[1770447375591,42.12745225,2064.0,2062.4,7.9462217]
[1770447375791,0.00394782,2064.0,2062.8,7.93997602]
[1770447376094,42.12745225,2064.0,2062.6,7.93997602]
[1770447377494,42.12350443,2063.9,2062.6,7.93997602]
[1770447377688,42.12745225,2064.0,2062.6,7.93997602]
[1770447378986,0.00394782,2064.0,2062.6,7.93997602]
[1770447379596,2.0158752,2063.6,2062.4,8.2483354]
[1770447379799,42.12350443,2063.8,2062.4,8.2483354]
[1770447379997,47.73997168,2063.9,2062.4,8.2483354]
[1770447380197,42.12350443,2063.9,2062.4,8.2483354]
[1770447380402,44.38571745,2064.0,2062.4,8.2483354]
[1770447380900,44.14332745,2064.0,2062.4,8.2483354]
[1770447381199,0.00394782,2064.0,2062.4,8.2483354]
[1770447381702,0.00394782,2064.0,2062.4,10.2642106]
[1770447381898,2.0158752,2064.2,2062.8,8.36786037]
[1770447382294,42.12350443,2064.5,2062.8,8.36786037]
[1770447382295,44.13937963,2064.5,2062.8,8.36786037]
[1770447383001,44.14321002,2064.5,2062.8,8.36786037]
[1770447383902,2.0158752,2063.8,2062.4,8.35710471]
[1770447384102,2.0158752,2064.1,2062.4,8.35710471]
[1770447385301,42.12350443,2064.0,2062.4,8.35710471]
[1770447385699,42.12350443,2063.9,2062.4,8.35710471]
[1770447386401,42.12350443,2064.0,2062.4,8.35710471]
[1770447386909,44.13937963,2063.8,2062.4,8.35710471]
[1770447387108,42.12350443,2063.9,2062.4,8.35710471]
[1770447387302,0.24244,2063.5,2062.4,0.00419221]
[1770447387502,42.12350443,2063.3,2062.4,8.1461613]
[1770447387703,5.61646725,2063.4,2062.4,8.1461613]
[1770447387704,44.13937963,2063.7,2062.4,8.1461613]
[1770447388007,42.12350443,2063.8,2062.4,8.1461613]
[1770447388410,42.12350443,2063.7,2062.4,8.1461613]
[1770447388708,42.12350443,2063.6,2062.4,8.1461613]
[1770447389208,42.12350443,2063.5,2062.4,8.1461613]
[1770447390010,42.12350443,2063.5,2062.4,0.00419221]
[1770447390206,42.12350443,2063.4,2062.4,0.00419221]
[1770447390403,44.13937963,2063.3,2062.4,0.00419221]
[1770447390599,2.0158752,2062.9,2061.7,8.19760371]
[1770447390803,42.12350443,2063.0,2061.7,8.19760371]
[1770447391210,8.59061629,2063.5,2061.7,8.19760371]
[1770447391211,2.0158752,2062.1,2061.7,8.19365588]
[1770447391407,5.57581965,2062.1,2061.0,6.85516313]
[1770447391603,5.57980497,2062.1,2061.0,6.85865487]
[1770447392710,0.00398532,2062.1,2061.0,6.85865487]
[1770447392911,4.50133253,2062.6,2061.2,6.85516313]
[1770447393308,4.50133253,2062.6,2061.3,6.85516313]
[1770447393708,4.37977296,2062.9,2061.6,6.85516313]
[1770447393907,4.33428496,2063.6,2062.2,6.85516313]
[1770447394107,4.33428496,2064.1,2062.5,6.85516313]
[1770447394407,4.33428496,2064.1,2062.8,6.85516313]
[1770447395004,4.33857777,2064.1,2062.8,6.85974883]
[1770447395412,4.35142236,2063.8,2062.8,0.0045857]
[1770447395803,4.29854383,2063.5,2062.2,6.83473358]
[1770447396000,4.27062806,2063.2,2061.4,6.83473358]
[1770447396304,2.0158752,2063.3,2061.4,6.83473358]
[1770447396305,4.27062806,2062.8,2061.4,6.83473358]
[1770447396909,4.27062806,2062.8,2061.4,6.8402342]
[1770447397104,4.97582286,2062.7,2061.4,6.8402342]
[1770447397311,4.98361271,2062.6,2061.4,6.8402342]
[1770447397505,4.98361271,2062.4,2061.4,6.8402342]
[1770447397705,42.12350443,2062.5,2061.5,6.83473358]
[1770447397912,4.94005845,2062.6,2061.4,6.8402342]
[1770447398116,4.94005845,2062.4,2061.4,6.8402342]
[1770447398915,4.94570585,2062.4,2061.4,6.8402342]
[1770447400112,4.94570585,2062.4,2061.4,0.00550062]
[1770447400317,5.36592459,2062.3,2061.4,0.00550062]
[1770447401612,5.32935713,2061.6,2060.2,6.83473358]
[1770447402620,42.12350443,2062.2,2060.2,6.83473358]
[1770447402621,5.27475962,2062.1,2060.2,6.83911666]
[1770447403017,5.27475962,2062.1,2060.5,6.83473358]
[1770447403519,5.2390417,2061.8,2060.2,6.83911666]
[1770447404315,5.4816817,2061.8,2060.2,6.83911666]
[1770447404508,5.21220665,2061.6,2060.2,6.83911666]
[1770447405517,5.21220665,2061.6,2060.3,6.83473358]
[1770447405719,5.17658128,2061.9,2060.3,6.83473358]
[1770447407519,5.11225509,2061.7,2060.3,6.83473358]
[1770447408830,5.11225509,2061.7,2059.6,2.0158752]
[1770447408831,5.03526721,2061.0,2058.9,2.0158752]
[1770447409125,5.03526721,2061.0,2059.4,6.83473358]
[1770447409320,5.03526721,2061.0,2059.6,6.83473358]
[1770447410228,6.99231854,2062.1,2059.6,6.83473358]
[1770447410229,5.00105884,2061.5,2059.8,6.83473358]
[1770447411725,5.00105884,2061.5,2060.1,6.83473358]
[1770447411919,6.86408713,2062.0,2060.1,6.83473358]
[1770447412627,6.90965022,2061.9,2060.4,6.83473358]
[1770447413025,6.86997694,2061.5,2060.4,6.83473358]
[1770447413224,6.86997694,2061.8,2060.4,6.83473358]
[1770447414230,2.09869354,2060.7,2059.7,6.83473358]
[1770447414424,0.00372311,2060.7,2059.8,6.83473358]
[1770447414624,6.18422546,2061.3,2060.0,2.09869354]
[1770447414820,6.18422546,2061.3,2060.1,6.83473358]
[1770447415630,6.18795904,2061.3,2060.1,6.83473358]
[1770447417325,0.00373358,2061.3,2060.1,6.83473358]
[1770447418624,6.27675446,2061.3,2060.1,6.83473358]
[1770447418833,0.00373358,2061.3,2060.1,6.83473358]
[1770447419124,0.00373358,2061.3,2060.4,6.83473358]
[1770447419326,6.23476741,2061.9,2060.6,2.09869354]
[1770447419526,6.23971052,2062.4,2061.0,6.83473358]
[1770447419831,6.23971052,2062.7,2061.6,6.83473358]
[1770447420332,6.24401927,2062.7,2061.6,6.8404963]
[1770447421024,6.24401927,2062.7,2061.6,0.00576272]
[1770447421025,6.16237286,2062.4,2061.6,0.00576272]
[1770447421221,6.16059544,2062.1,2060.1,2.88670257]
[1770447421419,6.16179867,2061.8,2060.7,6.83473358]
[1770447421931,6.16179867,2061.8,2059.8,6.83473358]
[1770447421932,6.1246394,2060.7,2059.8,6.83473358]
[1770447422224,6.1285678,2060.7,2059.8,6.83880059]
[1770447422432,0.0039284,2060.7,2059.8,6.83880059]
[1770447422825,6.05114798,2060.7,2059.8,0.00406701]
[1770447423031,6.05114798,2060.7,2059.8,6.83880059]
[1770447424726,0.0039284,2060.7,2059.8,6.83880059]
[1770447425529,6.14909615,2060.7,2059.8,6.83880059]
[1770447426836,6.14909615,2060.7,2059.8,0.00406701]
[1770447427234,6.01929108,2060.5,2059.8,0.00406701]
[1770447427431,6.01614424,2060.4,2059.3,6.28556984]
[1770447428332,2.8008483,2059.5,2058.4,7.19985791]
[1770447428533,5.96542802,2059.7,2058.5,6.28556984]
[1770447428832,48.12317667,2060.3,2058.5,6.28556984]
[1770447429038,5.99967224,2060.3,2058.9,6.28556984]
[1770447429432,6.08181825,2060.2,2058.9,6.28556984]
[1770447429632,6.08181825,2060.2,2057.8,0.3809159]
[1770447429633,6.08181825,2059.5,2058.3,6.06169279]
[1770447430038,6.04891451,2059.3,2057.6,6.06169279]
[1770447430235,6.04891451,2059.2,2057.6,6.06169279]
[1770447430434,6.04891451,2059.2,2057.6,6.44381545]
[1770447430630,6.04891451,2059.2,2057.6,6.44748421]
[1770447430840,6.05408961,2059.2,2057.6,6.44748421]
[1770447431037,6.05408961,2059.2,2057.6,0.00366876]
[1770447431241,42.12350443,2058.2,2055.6,2.88670257]
[1770447431440,41.83047499,2057.8,2055.6,6.25925328]
[1770447431639,6.05218903,2057.3,2055.6,6.25925328]
[1770447431941,6.05218903,2057.1,2055.6,6.25925328]
[1770447432142,6.05218903,2057.1,2055.7,0.19756049]
[1770447432333,6.05218903,2057.1,2055.3,6.06169279]
[1770447432535,6.05571768,2057.1,2055.5,6.06169279]
[1770447432735,6.05571768,2057.1,2055.4,0.19756049]
[1770447432936,6.05571768,2057.1,2055.3,0.00590191]
[1770447432937,6.2183842,2056.9,2054.9,6.06169279]
[1770447433343,6.2183842,2056.9,2055.0,6.26515519]
[1770447433545,6.22191285,2057.1,2055.0,6.06169279]
[1770447433738,6.22191285,2057.1,2055.2,6.06169279]
[1770447434244,6.22191285,2057.1,2055.3,6.26515519]
[1770447434448,6.22191285,2057.1,2055.3,6.06169279]
[1770447434639,6.22191285,2057.1,2055.5,6.06169279]
[1770447434841,6.22191285,2057.1,2055.7,6.06169279]
[1770447435248,6.22191285,2057.1,2055.8,6.26515519]
[1770447435543,6.22191285,2057.1,2055.5,6.06169279]
[1770447435741,0.00352865,2057.1,2055.5,6.06169279]
[1770447435937,6.22191285,2057.1,2055.7,6.06169279]
[1770447436145,6.22191285,2057.1,2055.9,6.06169279]
[1770447436345,0.00352865,2057.1,2055.9,6.06169279]
[1770447436638,0.00352865,2057.1,2056.1,6.06169279]
[1770447437039,0.00352865,2057.1,2056.3,6.06169279]
[1770447437442,5.73669093,2057.1,2056.4,0.2034624]
[1770447437643,5.73669093,2057.1,2056.0,6.06169279]
[1770447437841,5.73669093,2057.1,2056.1,0.2034624]
[1770447438041,5.73669093,2057.1,2056.1,6.26515519]
[1770447438336,5.73669093,2057.1,2056.2,6.0675947]
[1770447438742,5.73669093,2057.1,2054.6,6.06169279]
[1770447439139,5.73669093,2057.1,2053.4,3.82577401]
[1770447439140,5.73669093,2057.1,2054.8,6.06169279]
[1770447439348,5.73669093,2057.1,2055.0,6.06169279]
[1770447439850,5.73669093,2057.1,2055.2,6.06169279]
[1770447440238,0.00352865,2057.1,2055.4,6.06169279]
[1770447440445,0.00352865,2057.1,2055.6,6.06169279]
[1770447440846,0.00352865,2057.1,2055.8,6.06169279]
[1770447441345,0.00352865,2057.1,2056.0,6.06169279]
[1770447441551,5.88340485,2058.3,2056.0,6.06169279]
[1770447441856,5.88340485,2058.3,2056.2,6.06169279]
[1770447442152,5.88340485,2058.3,2055.9,6.06169279]
[1770447442446,5.9574243,2058.2,2055.9,6.06527791]
[1770447442644,5.9574243,2058.2,2056.1,6.06169279]
[1770447443052,5.9574243,2058.2,2056.3,6.06169279]
[1770447443450,5.9574243,2058.2,2056.5,6.06169279]
[1770447444054,0.00454767,2058.3,2056.7,6.06169279]
[1770447444451,0.00454767,2058.3,2056.9,6.06169279]
[1770447444656,46.67054138,2060.1,2058.1,6.06169279]
[1770447444657,5.6083221,2059.3,2058.1,6.06169279]
[1770447445051,5.6083221,2059.3,2056.6,6.06169279]
[1770447445553,5.6083221,2059.3,2056.8,6.06169279]
[1770447445554,5.57576016,2059.1,2056.8,6.06169279]
[1770447445752,5.57576016,2058.9,2057.0,6.06169279]
[1770447445958,5.57576016,2058.9,2057.1,6.26162654]
[1770447446260,5.54287087,2058.7,2057.2,6.26162654]
[1770447446461,5.54287087,2058.7,2057.2,6.06169279]
[1770447446762,5.54287087,2058.7,2057.2,6.26162654]
[1770447447761,5.54287087,2058.7,2057.2,0.19993375]
[1770447448249,5.54287087,2058.7,2057.2,6.26162654]
[1770447448449,5.54287087,2058.7,2056.6,0.00565323]
[1770447448450,5.55676364,2058.5,2056.6,6.06734602]
[1770447448656,5.55676364,2058.4,2056.6,6.06734602]
[1770447449958,5.50623704,2059.0,2056.6,6.06734602]
[1770447451554,5.61440779,2059.3,2056.6,6.06734602]
[1770447451756,0.00393668,2059.3,2057.3,6.30486279]
[1770447452458,5.58225585,2059.3,2057.3,6.30486279]
[1770447452655,5.58225585,2059.3,2057.3,6.06169279]
[1770447452854,5.48904254,2059.2,2057.3,6.06169279]
[1770447453265,5.48904254,2059.1,2057.3,6.06169279]
[1770447455266,5.41105275,2059.0,2057.3,6.06169279]
[1770447455464,5.41148865,2058.9,2057.3,6.06169279]
[1770447455969,5.37420987,2058.8,2057.3,6.06169279]
[1770447456159,5.37420987,2058.8,2056.7,5.89045699]
[1770447456160,5.37420987,2058.4,2056.7,5.89045699]
[1770447456359,5.30781471,2058.3,2056.7,5.89045699]
[1770447456563,5.30781471,2058.2,2056.7,5.89045699]
[1770447457270,5.2766322,2058.1,2056.7,5.89045699]
[1770447459566,2.74595645,2058.3,2057.3,5.89045699]
[1770447459771,8.10968393,2058.3,2057.3,5.89045699]
[1770447460169,5.33305347,2058.1,2057.3,5.89045699]
[1770447460674,8.09264585,2058.2,2057.3,5.89045699]
[1770447461561,5.31636657,2058.0,2056.7,5.89045699]
[1770447461966,5.28602497,2057.2,2055.8,5.89045699]
[1770447462868,5.29083713,2057.2,2055.8,5.89293655]
[1770447463070,0.00481216,2057.2,2055.8,5.89293655]
[1770447465371,0.00481216,2057.2,2056.0,5.89045699]
[1770447465571,7.89105119,2057.9,2056.0,5.89045699]
[1770447466070,7.89105119,2057.9,2055.8,3.12968683]
[1770447466071,2.74595645,2057.9,2056.4,2.43760931]
[1770447466267,2.74595645,2058.3,2056.5,5.89045699]
[1770447466469,2.74595645,2058.8,2057.1,0.2432]
[1770447466673,0.00470182,2058.8,2057.5,5.89045699]
[1770447466868,0.00470182,2058.8,2057.5,5.89390622]
[1770447467074,5.06701084,2058.8,2057.5,5.89390622]
[1770447467271,5.06230902,2058.6,2057.5,5.89390622]
[1770447467475,5.06268299,2058.4,2057.5,5.89390622]
[1770447467671,5.06268299,2058.3,2057.5,5.89390622]
[1770447467871,5.06268299,2058.3,2057.5,0.00344923]
[1770447468275,7.77926218,2058.1,2057.3,5.89045699]
[1770447468473,2.74595645,2058.3,2057.3,5.89045699]
[1770447468674,4.99578449,2058.1,2056.2,5.89045699]
[1770447468868,7.7127616,2057.4,2056.2,5.89045699]
[1770447469076,4.96680515,2057.6,2056.2,5.89045699]
[1770447469272,2.74595645,2058.1,2056.2,5.89420088]
[1770447469573,4.96726864,2058.1,2056.3,5.89045699]
[1770447469981,7.71322509,2058.1,2056.3,5.89045699]
[1770447470173,2.74595645,2058.2,2056.4,5.89045699]
[1770447470575,4.91106609,2058.1,2056.4,5.89045699]
[1770447470773,4.88215522,2057.8,2056.4,5.89045699]
[1770447470980,4.88215522,2057.6,2056.4,5.89045699]
[1770447471380,4.88215522,2057.5,2056.4,5.89045699]
[1770447471880,4.8539274,2057.4,2056.4,5.89045699]
[1770447472085,2.74595645,2057.3,2056.4,5.89045699]
[1770447472277,4.8539274,2057.2,2056.2,5.89420088]
[1770447472877,2.74595645,2057.3,2056.2,5.89420088]
[1770447473075,2.74595645,2057.6,2056.2,5.89420088]
[1770447473272,0.00531487,2057.6,2056.2,5.89420088]
[1770447473478,2.75127132,2057.6,2056.2,5.89420088]
[1770447474182,0.00531487,2057.6,2056.2,5.89420088]
[1770447474382,2.74595645,2057.3,2056.2,5.89420088]
[1770447474682,4.94021664,2057.2,2056.2,5.89420088]
[1770447474882,4.88416533,2057.1,2056.2,5.89420088]
[1770447475079,7.63012178,2057.1,2056.2,0.00374389]
[1770447475273,4.88416533,2056.8,2056.2,0.00264545]
[1770447475581,2.74595645,2056.4,2055.3,5.89045699]
[1770447475782,2.74595645,2056.4,2054.5,2.88385727]
[1770447475783,4.8555576,2056.0,2054.7,5.89045699]
[1770447475981,4.8555576,2055.5,2054.0,5.89045699]
[1770447476174,4.8555576,2055.1,2054.0,5.89045699]
[1770447476377,5.57721425,2055.7,2054.0,5.89045699]
[1770447476378,4.79436954,2055.7,2054.0,5.89045699]
[1770447476575,0.00603873,2055.7,2054.0,5.89045699]
[1770447477498,0.00603873,2055.7,2054.0,8.77431426]
[1770447477676,0.00603873,2055.7,2054.3,5.89045699]
[1770447478080,4.73898928,2056.7,2054.5,6.13395699]
[1770447478283,2.74595645,2056.5,2054.5,5.89045699]
[1770447478587,4.59436247,2056.4,2054.5,5.89045699]
[1770447478779,4.59436247,2056.3,2054.5,5.89045699]
[1770447479088,4.59946475,2056.3,2054.5,5.8950294]
[1770447479280,0.00510228,2056.3,2054.5,5.8950294]
[1770447479582,4.57283188,2056.3,2054.6,5.89045699]
[1770447479793,4.54014834,2055.6,2054.2,5.89045699]
[1770447479983,4.54014834,2055.5,2054.2,5.89045699]
[1770447480689,4.54014834,2055.5,2054.2,5.89202191]
[1770447480982,4.60306445,2055.8,2054.2,5.89202191]
[1770447481183,4.60306445,2055.4,2054.2,5.89202191]
[1770447481381,4.60306445,2055.4,2054.2,0.00156492]
[1770447481781,4.60306445,2055.4,2054.2,5.89202191]
[1770447482178,7.32229014,2055.7,2054.2,5.89202191]
[1770447482378,4.57633369,2055.7,2054.2,5.89202191]
[1770447484184,4.41934263,2056.0,2054.2,5.89202191]
[1770447484891,4.13290598,2056.3,2054.2,5.89202191]